bitfinex/quotes_ETHUSD_20250529
["timestamp","ask_amount","ask_price","bid_price","bid_amount"]
[1748494941657,3.66526598,2728.4,2728.1,0.05]
[1748494942083,8.02906623,2728.5,2728.1,0.05]
[1748494942384,4.364,2728.5,2728.2,8.0]
[1748494942556,4.362,2728.5,2728.2,8.0]
[1748494943192,3.6651767,2728.4,2728.1,0.05]
[1748494943484,9.0744893,2728.5,2728.1,0.05]
[1748494943875,3.66515173,2728.4,2728.1,0.05]
[1748494944057,3.66528607,2728.3,2728.1,0.05]
[1748494944261,4.94293886,2728.3,2728.1,0.05]
[1748494944570,1.27765279,2728.3,2728.1,0.05]
[1748494945383,4.94294306,2728.3,2728.1,0.05]
[1748494945589,4.87817033,2728.2,2728.1,0.05]
[1748494945888,5.2164298,2728.2,2728.1,0.05]
[1748494946090,4.84276444,2727.2,2726.7,1.361]
[1748494946301,4.84276444,2727.2,2726.3,7.917]
[1748494946302,9.23851435,2727.2,2726.3,1.1778]
[1748494946604,9.20176444,2727.2,2726.3,9.1778]
[1748494946781,9.20176444,2727.2,2726.3,1.1778]
[1748494946945,9.20176444,2727.2,2726.3,8.0]
[1748494947144,9.20176444,2727.2,2726.2,3.66806098]
[1748494947145,9.20176444,2727.2,2726.2,8.0]
[1748494947387,9.20176444,2727.2,2726.2,11.66810823]
[1748494947586,9.20176444,2727.2,2726.2,3.66810823]
[1748494948090,9.82156444,2727.2,2726.1,0.05]
[1748494948289,11.17038424,2727.2,2726.1,0.05]
[1748494949003,4.91390945,2726.2,2726.1,0.05]
[1748494949146,9.27190945,2726.2,2726.1,0.05]
[1748494949575,3.6672702,2726.9,2726.1,3.71823346]
[1748494949805,4.91284975,2727.0,2726.1,0.05]
[1748494950096,4.357,2726.8,2726.2,3.66810034]
[1748494950303,4.357,2726.8,2726.1,0.05]
[1748494950464,4.91368977,2726.4,2726.1,0.05]
[1748494950790,8.02397491,2726.3,2726.1,0.05]
[1748494950991,3.66810945,2726.2,2726.1,0.05]
[1748494951313,4.5951004,2726.2,2726.1,0.05]
[1748494953691,0.92699095,2726.2,2726.1,0.05]
[1748494953988,4.91369279,2726.4,2726.1,0.05]
[1748494954193,1.2432,2726.9,2726.4,3.66771707]
[1748494954410,1.2432,2726.9,2726.1,8.08668018]
[1748494954695,3.66577886,2728.0,2726.1,8.08668018]
[1748494954696,4.354,2727.0,2726.2,9.29781958]
[1748494954848,1.2432,2727.2,2726.2,12.96585853]
[1748494955193,1.2432,2727.5,2726.8,3.66724245]
[1748494955495,1.2432,2727.5,2727.0,3.66695676]
[1748494955645,1.2432,2727.5,2726.6,1.2232]
[1748494955646,5.5962,2727.5,2726.6,1.2232]
[1748494955861,5.5962,2727.5,2727.0,3.66701232]
[1748494956299,3.70334075,2727.4,2726.8,3.66728068]
[1748494956501,5.5962,2727.5,2726.7,3.66733755]
[1748494956502,3.66670561,2727.3,2726.7,3.66733755]
[1748494956800,6.52244996,2727.5,2726.6,9.2232]
[1748494956801,1.2432,2727.5,2726.6,9.2232]
[1748494957102,4.352,2727.3,2727.0,8.0]
[1748494957302,4.90964405,2727.5,2727.0,11.66698108]
[1748494957303,1.2432,2727.5,2727.0,11.66698108]
[1748494957602,5.5952,2727.5,2727.0,11.66698108]
[1748494957803,9.26160582,2727.5,2727.0,8.0]
[1748494958971,5.5952,2727.5,2726.9,8.0]
[1748494959177,3.66614373,2727.7,2727.1,3.66682003]
[1748494959376,4.35,2727.6,2727.1,8.0]
[1748494959891,4.35,2727.6,2727.1,3.66687558]
[1748494960076,4.35,2727.6,2727.1,8.0]
[1748494960271,8.01623503,2727.6,2726.9,4.83386941]
[1748494960471,8.01623503,2727.6,2726.9,3.66714068]
[1748494960472,4.35,2727.6,2726.9,3.66714068]
[1748494960687,4.349,2727.5,2727.0,3.66702629]
[1748494960984,8.01537747,2727.5,2727.0,3.66702629]
[1748494961187,8.01537747,2727.5,2726.8,11.66718079]
[1748494961188,4.349,2727.5,2726.8,11.66718079]
[1748494961390,3.6665278,2727.4,2726.8,11.66718079]
[1748494961593,1.16817944,2727.4,2727.0,8.0]
[1748494962164,1.16817944,2727.4,2727.0,3.66702608]
[1748494962396,4.347,2727.3,2726.8,8.0]
[1748494962613,4.347,2727.3,2727.1,3.66682126]
[1748494962916,4.347,2727.3,2727.1,3.66683838]
[1748494964270,4.347,2727.5,2727.1,3.66683838]
[1748494964670,4.347,2727.5,2726.9,3.66713037]
[1748494964908,8.44814443,2727.5,2727.0,8.0]
[1748494965207,0.03674991,2727.4,2726.6,1.2232]
[1748494965415,3.66671664,2727.3,2726.8,8.0]
[1748494965713,3.66656109,2727.4,2726.9,8.0]
[1748494965872,3.66656109,2727.4,2726.9,3.66714663]
[1748494965873,4.87802705,2727.4,2726.9,3.66714663]
[1748494966314,1.21146596,2727.4,2727.1,8.0]
[1748494966475,1.21146596,2727.4,2727.0,3.66697865]
[1748494966476,4.344,2727.4,2727.0,11.66700294]
[1748494966675,4.344,2727.4,2727.2,3.66675771]
[1748494966905,4.343,2727.5,2727.2,3.66675771]
[1748494967119,3.66609679,2727.7,2727.2,3.66675771]
[1748494967425,8.49269695,2727.6,2727.0,11.66696304]
[1748494967631,8.49269695,2727.6,2727.1,3.66686725]
[1748494967632,4.343,2727.6,2727.1,3.66686725]
[1748494967970,8.00926168,2727.6,2727.1,3.66686725]
[1748494968192,8.00926168,2727.6,2727.0,11.66696697]
[1748494968394,4.343,2727.6,2727.0,8.0]
[1748494968610,3.66644307,2727.5,2727.0,8.0]
[1748494968773,4.89415,2727.6,2726.8,3.66724728]
[1748494969111,3.66636113,2727.5,2727.1,8.0]
[1748494969321,3.66636113,2727.5,2727.0,8.0]
[1748494969610,3.66636113,2727.5,2727.0,11.66701998]
[1748494969975,8.56044347,2727.6,2727.0,8.0]
[1748494970170,1.22265465,2727.5,2727.1,3.66685231]
[1748494970414,3.66638827,2727.5,2727.0,8.0]
[1748494970786,3.66657185,2727.4,2726.8,3.66723702]
[1748494971114,3.66658922,2727.4,2726.9,3.66715452]
[1748494971417,3.66658922,2727.4,2726.8,8.0]
[1748494971418,3.66658922,2727.4,2726.8,3.66724372]
[1748494971616,3.66658922,2727.4,2726.8,11.66724372]
[1748494972410,3.66658922,2727.4,2726.9,3.6671475]
[1748494972572,3.66658922,2727.4,2726.8,8.0]
[1748494972573,4.89415,2727.6,2727.1,8.0]
[1748494972775,8.56049586,2727.6,2727.1,8.0]
[1748494973242,0.55115,2727.6,2727.0,8.0]
[1748494973518,4.337,2727.5,2727.1,4.88621271]
[1748494974283,4.337,2727.5,2727.1,4.88624514]
[1748494974794,3.666135,2727.7,2727.1,4.88624514]
[1748494974993,3.666135,2727.7,2727.1,4.88626343]
[1748494975518,8.00224474,2727.6,2727.1,4.88626343]
[1748494976283,4.336,2727.6,2727.2,3.66675595]
[1748494976623,4.336,2727.6,2727.1,1.2194]
[1748494976624,4.335,2727.5,2727.1,4.88625715]
[1748494976825,4.335,2727.5,2727.1,1.2194]
[1748494977123,4.335,2727.5,2727.1,8.0]
[1748494977512,8.00142845,2727.5,2727.1,8.0]
[1748494977707,3.66689319,2727.2,2726.9,1.202]
[1748494977908,3.66689319,2727.2,2726.6,3.66754368]
[1748494977909,4.84439319,2727.2,2726.6,8.0]
[1748494978083,4.84439319,2727.2,2726.6,11.66748107]
[1748494978735,1.1775,2727.2,2726.8,3.66730233]
[1748494978998,1.1775,2727.2,2727.0,8.0]
[1748494979812,1.1775,2727.2,2726.2,1.2022]
[1748494979813,5.5773,2727.1,2726.2,1.2022]
[1748494980694,3.66718304,2726.9,2726.4,8.0]
[1748494981898,3.66713826,2727.0,2726.4,3.66776881]
[1748494982124,9.24420614,2727.1,2726.4,3.66776881]
[1748494982326,3.66712041,2727.0,2726.4,3.66776881]
[1748494982529,9.24424297,2727.1,2726.6,8.0]
[1748494982703,5.5773,2727.1,2726.6,8.0]
[1748494982891,3.66724851,2726.9,2726.4,8.85379423]
[1748494983287,3.66780679,2726.5,2726.1,0.05]
[1748494983826,5.4986,2726.6,2726.1,8.05]
[1748494983827,9.16622607,2726.6,2726.1,8.05]
[1748494984011,5.4986,2726.6,2726.1,0.05]
[1748494984333,5.4986,2726.6,2726.2,8.0]
[1748494984532,1.1696,2727.0,2726.1,0.05]
[1748494984689,8.0,2727.8,2726.6,3.66755631]
[1748494984690,4.9006232,2727.2,2726.6,3.66755631]
[1748494985039,4.328,2727.1,2726.7,8.0]
[1748494986225,7.99490721,2727.1,2726.6,8.0]
[1748494986589,7.99490721,2727.1,2726.6,11.66756155]
[1748494986939,4.328,2727.1,2726.6,11.66751934]
[1748494987144,4.328,2727.1,2726.6,8.0]
[1748494987308,8.91785289,2727.1,2726.6,8.0]
[1748494988200,1.2338,2727.2,2726.6,11.66756662]
[1748494988427,0.36,2727.7,2726.8,3.66722263]
[1748494988428,4.325,2727.1,2726.8,3.66722263]
[1748494988723,4.324,2727.1,2726.8,3.66722263]
[1748494988925,4.81252239,2727.4,2726.9,3.66716354]
[1748494989247,4.81252239,2727.4,2726.8,11.66726256]
[1748494989248,4.324,2727.1,2726.8,11.66726256]
[1748494989428,4.81255525,2727.4,2726.8,11.66726256]
[1748494989819,4.323,2727.3,2727.0,8.0]
[1748494990020,4.323,2727.3,2727.0,11.66696852]
[1748494990264,4.323,2727.3,2727.0,8.0]
[1748494990433,4.323,2727.3,2726.8,9.64772068]
[1748494990434,7.98973315,2727.3,2726.8,9.64772068]
[1748494990863,3.66686886,2727.2,2726.8,8.0]
[1748494991055,3.66686886,2727.2,2726.7,8.0]
[1748494991558,3.66686886,2727.2,2726.7,3.66741571]
[1748494991759,4.323,2727.3,2726.7,3.66741571]
[1748494991760,7.98969332,2727.3,2726.7,3.66741571]
[1748494991971,3.66678188,2727.2,2726.7,3.66741571]
[1748494992269,3.66678188,2727.2,2726.6,11.66750909]
[1748494992431,3.66678188,2727.2,2726.7,3.66743462]
[1748494992775,0.79897819,2727.1,2726.6,11.66754594]
[1748494992920,0.79897819,2727.1,2726.4,8.0]
[1748494992921,2.04397819,2727.1,2726.4,8.0]
[1748494993119,3.66735633,2726.8,2726.3,3.66792458]
[1748494993422,1.245,2726.8,2726.1,3.71818417]
[1748494993648,3.66743682,2726.7,2726.1,3.71818417]
[1748494993859,5.50557374,2726.8,2726.1,3.71818417]
[1748494994160,1.8015,2726.8,2726.5,8.0]
[1748494994380,3.66707925,2727.0,2726.5,3.66764895]
[1748494994684,4.319,2726.9,2726.7,8.0]
[1748494995180,4.85715893,2727.3,2726.6,12.90533868]
[1748494995323,4.319,2727.2,2726.8,3.66722846]
[1748494995738,4.319,2727.2,2726.9,3.66712368]
[1748494995978,1.1905,2727.3,2726.9,3.66712368]
[1748494996231,4.318,2727.2,2727.0,8.0]
[1748494996623,4.318,2727.3,2726.9,11.66706812]
[1748494997872,4.318,2727.3,2726.7,11.66735258]
[1748494998472,7.98468987,2727.3,2726.7,11.66735258]
[1748494998674,7.98468987,2727.3,2726.9,8.0]
[1748494998985,7.98468987,2727.3,2726.6,1.2378]
[1748494998986,5.60215742,2727.3,2726.6,1.2378]
[1748494999181,4.91175888,2727.0,2726.6,8.0]
[1748494999342,9.22675888,2727.0,2726.4,11.66779586]
[1748494999691,5.5597,2727.0,2726.4,11.66779586]
[1748494999961,5.5597,2727.0,2726.6,8.0]
[1748495000163,3.66718393,2726.9,2726.4,3.66779809]
[1748495000365,3.66748296,2726.7,2726.3,1.2066]
[1748495000566,3.66777698,2726.5,2726.1,0.05]
[1748495000770,4.91247698,2726.5,2726.1,0.05]
[1748495001067,4.314,2726.4,2726.1,0.05]
[1748495001725,4.314,2726.4,2726.2,8.0]
[1748495001924,4.314,2726.4,2726.2,11.66802336]
[1748495001925,4.313,2726.4,2726.2,11.66802336]
[1748495003064,1.1471,2726.7,2726.2,8.0]
[1748495003268,4.79344109,2726.6,2726.2,8.0]
[1748495003765,4.79344109,2726.6,2726.2,3.66809382]
[1748495004479,4.311,2726.5,2726.2,8.0]
[1748495004680,4.311,2726.5,2726.2,11.66807992]
[1748495005277,1.1471,2726.7,2726.3,3.66796008]
[1748495005487,4.31,2726.6,2726.3,3.66796008]
[1748495005944,4.31,2726.6,2726.5,8.0]
[1748495006528,4.741,2726.6,2726.1,0.05]
[1748495006758,1.1593,2726.5,2726.1,0.05]
[1748495007068,1.1593,2726.5,2726.2,8.0]
[1748495008063,1.1593,2726.5,2726.1,0.05]
[1748495008674,1.1593,2726.5,2726.2,3.66805601]
[1748495009167,4.307,2726.5,2726.3,3.66790091]
[1748495009368,1.1593,2726.8,2726.3,3.66790091]
[1748495009581,1.1593,2726.8,2726.4,3.66781824]
[1748495009895,4.307,2726.8,2726.4,1.1338]
[1748495010083,7.97338741,2726.8,2726.3,8.0]
[1748495010613,9.25337435,2726.8,2726.3,8.0]
[1748495010909,4.306,2726.8,2726.3,8.0]
[1748495011462,4.306,2726.8,2726.4,3.66782196]
[1748495011803,4.82640711,2727.0,2726.4,3.66784037]
[1748495011972,0.36,2727.1,2726.3,8.0]
[1748495012168,1.1588,2727.3,2726.8,3.66725873]
[1748495012169,4.305,2727.0,2726.8,3.66725873]
[1748495012499,4.82548944,2727.3,2726.7,12.86705074]
[1748495012698,4.304,2727.2,2726.7,12.86705074]
[1748495012901,4.304,2727.1,2726.7,9.1997]
[1748495013263,4.304,2727.1,2726.7,8.0]
[1748495014592,4.304,2727.1,2726.5,1.1897]
[1748495014803,4.304,2727.1,2726.7,3.66736798]
[1748495015203,4.304,2727.1,2726.5,4.85738013]
[1748495015498,7.97091832,2727.1,2726.5,4.85736935]
[1748495015693,9.25055395,2727.1,2726.5,4.85736935]
[1748495015880,5.58363563,2727.1,2726.6,3.66756217]
[1748495016101,4.304,2727.1,2726.6,3.66757133]
[1748495016674,4.82546421,2727.3,2726.5,1.1897]
[1748495016880,4.301,2727.2,2726.5,1.1897]
[1748495017081,4.301,2727.2,2726.3,1.326]
[1748495017281,3.66737601,2726.8,2726.3,9.326]
[1748495017583,3.66751216,2726.7,2726.3,9.326]
[1748495017783,3.66751216,2726.7,2726.2,8.0]
[1748495017981,3.66761314,2726.6,2726.2,8.0]
[1748495018221,4.80040508,2726.7,2726.1,4.88929059]
[1748495018426,4.80040508,2726.7,2726.2,8.0]
[1748495019999,1.1329,2726.7,2726.2,11.66808552]
[1748495020401,4.80043262,2726.7,2726.2,8.0]
[1748495020604,4.80043262,2726.7,2726.2,11.66810796]
[1748495020813,4.80043262,2726.7,2726.2,8.0]
[1748495021148,1.1329,2726.7,2726.2,8.0]
[1748495021453,1.1329,2726.7,2726.2,1.05471]
[1748495021636,1.1329,2726.7,2726.4,3.66779782]
[1748495021637,5.4299,2726.7,2726.4,3.66779782]
[1748495021835,4.297,2726.7,2726.4,3.66779782]
[1748495022352,4.297,2726.7,2726.4,1.2157]
[1748495022353,4.296,2726.7,2726.4,1.2157]
[1748495022548,1.2215,2727.2,2726.7,3.66741127]
[1748495022851,1.2215,2727.2,2726.8,3.66717918]
[1748495022852,4.296,2727.1,2726.8,3.66717918]
[1748495023347,4.295,2727.1,2726.9,3.66715481]
[1748495023548,0.33732968,2727.8,2727.0,3.66696009]
[1748495023549,1.1323,2727.4,2727.0,3.66696009]
[1748495023764,4.295,2727.3,2727.0,3.66696009]
[1748495024260,4.295,2727.3,2726.9,3.66713316]
[1748495024825,4.295,2727.3,2727.0,3.66693803]
[1748495025147,1.1323,2727.4,2727.0,3.66693803]
[1748495025351,4.294,2727.3,2727.0,3.66693803]
[1748495025920,4.294,2727.3,2726.9,11.66710149]
[1748495026132,4.294,2727.3,2726.9,11.66711083]
[1748495026462,4.294,2727.3,2727.0,3.66694489]
[1748495026635,3.66626009,2727.6,2727.0,3.66703337]
[1748495026636,1.2079,2727.6,2727.0,3.66703337]
[1748495026835,1.2079,2727.6,2727.2,3.66668943]
[1748495026836,4.292,2727.5,2727.2,3.66668943]
[1748495027076,1.2079,2727.6,2727.2,3.66668943]
[1748495027247,1.1313,2728.0,2727.3,9.1313]
[1748495027579,5.4233,2728.4,2727.8,1.1313]
[1748495027875,5.4233,2728.4,2728.0,3.66556735]
[1748495028175,5.4233,2728.4,2727.9,11.66576573]
[1748495028781,1.1313,2728.4,2727.9,8.0]
[1748495028975,5.4213,2728.4,2727.9,11.66571939]
[1748495029279,5.4213,2728.4,2727.8,4.79723842]
[1748495029280,3.66540816,2728.3,2727.8,8.0]
[1748495029783,5.4213,2728.4,2727.8,11.66595295]
[1748495029784,9.08647379,2728.4,2727.8,11.66595295]
[1748495030086,3.66529385,2728.3,2727.8,9.53321765]
[1748495030243,9.0855118,2728.4,2727.8,5.1991627]
[1748495030583,3.66520316,2728.4,2727.8,5.19916572]
[1748495030754,3.71453398,2728.9,2727.9,9.2226]
[1748495030755,1.1489,2728.7,2727.9,9.2226]
[1748495030951,4.81373538,2728.7,2728.1,3.66546937]
[1748495031198,4.81373538,2728.7,2727.9,14.76390712]
[1748495031199,1.1489,2728.7,2728.4,3.66503465]
[1748495031495,1.1489,2728.7,2727.9,11.09818177]
[1748495031496,1.2104,2728.9,2727.9,14.76396502]
[1748495031654,4.338,2728.9,2728.5,3.6649243]
[1748495031854,0.05,2728.9,2728.6,3.66487334]
[1748495032051,0.05,2728.9,2728.7,3.66472267]
[1748495032301,0.05,2728.9,2728.8,3.66461448]
[1748495032516,0.05,2728.9,2728.8,11.66461448]
[1748495032656,0.05,2728.9,2728.8,12.80921448]
[1748495033256,0.05,2728.9,2728.8,25.98284824]
[1748495033687,0.05,2728.9,2728.8,24.99472824]
[1748495033892,0.05,2728.9,2728.8,28.33736871]
[1748495034103,0.32579935,2729.7,2728.8,28.33736871]
[1748495034104,0.32579935,2729.7,2729.6,3.66354044]
[1748495034315,0.32579935,2729.7,2729.6,11.66354044]
[1748495034663,0.32579935,2729.7,2729.6,20.4503542]
[1748495034901,0.32579935,2729.7,2729.6,24.7353542]
[1748495035176,0.32579935,2729.7,2729.6,27.70615665]
[1748495035359,0.32579935,2729.7,2729.6,27.30594865]
[1748495035856,0.32579935,2729.7,2729.6,25.85594165]
[1748495037197,0.32579935,2729.7,2729.6,26.27690165]
[1748495037800,0.32579935,2729.7,2729.6,20.13590165]
[1748495038098,0.32579935,2729.7,2729.6,24.48190289]
[1748495039175,0.32579935,2729.7,2729.6,24.21587089]
[1748495039373,0.32579935,2729.7,2729.6,23.66587089]
[1748495039616,0.32579935,2729.7,2729.6,23.66487089]
[1748495040213,0.32579935,2729.7,2729.6,17.08694289]
[1748495040373,0.32579935,2729.7,2729.6,17.63694289]
[1748495040572,0.32579935,2729.7,2729.6,34.41655589]
[1748495040777,0.32579935,2729.7,2729.6,32.26410689]
[1748495041086,0.32579935,2729.7,2729.6,24.23720289]
[1748495041944,0.32579935,2729.7,2729.6,24.83501289]
[1748495043404,0.32579935,2729.7,2729.6,24.83301289]
[1748495047194,0.05,2729.9,2729.8,4.21327203]
[1748495047363,0.05,2729.9,2729.8,24.3216273]
[1748495048449,0.05,2729.9,2729.8,22.7176273]
[1748495048644,0.05,2729.9,2729.8,19.9476573]
[1748495048845,0.05,2729.9,2729.3,3.66390659]
[1748495048846,1.1566,2729.8,2728.9,3.66442288]
[1748495049050,1.1566,2729.8,2729.5,3.66355692]
[1748495049302,1.1566,2729.8,2729.7,8.0]
[1748495049595,0.05,2729.9,2729.8,3.66327203]
[1748495050593,0.05,2729.9,2729.7,8.0]
[1748495050794,1.1721,2729.8,2729.2,7.913]
[1748495050995,1.1721,2729.8,2729.4,1.292]
[1748495051292,1.1721,2729.8,2729.2,11.57704007]
[1748495051293,1.1721,2729.8,2729.2,7.913]
[1748495051495,1.1721,2729.4,2728.6,1.2099]
[1748495051801,1.1721,2729.4,2727.9,3.66573185]
[1748495051802,1.1721,2728.6,2727.9,3.66579163]
[1748495051997,4.87374651,2728.6,2728.0,0.80178451]
[1748495052201,4.266,2728.9,2728.0,0.30600535]
[1748495052202,1.1721,2728.5,2728.0,0.30600535]
[1748495052402,1.20884991,2728.5,2728.0,0.30600535]
[1748495053022,1.1721,2728.5,2728.0,0.30600535]
[1748495053151,3.66555478,2728.1,2728.0,0.30600535]
[1748495053352,4.83765478,2728.1,2728.0,0.30600535]
[1748495054014,4.83765478,2728.1,2727.7,0.5772]
[1748495054015,3.6657136,2728.0,2727.7,0.5772]
[1748495054354,1.1721,2728.1,2727.7,0.5772]
[1748495055074,1.1721,2728.1,2727.9,3.66582338]
[1748495055271,1.1721,2728.1,2728.0,3.66568914]
[1748495055474,1.1721,2728.1,2727.9,3.66578072]
[1748495055795,1.1721,2728.1,2727.8,3.6659184]
[1748495055996,1.1721,2728.1,2727.7,12.24323846]
[1748495056205,1.1721,2728.1,2727.8,3.66588762]
[1748495056624,1.1721,2728.1,2727.9,3.66578956]
[1748495056783,1.1721,2728.1,2727.7,0.5772]
[1748495057317,4.8377003,2728.1,2727.7,0.5772]
[1748495057550,0.48377003,2728.0,2727.7,0.5772]
[1748495057726,1.1721,2728.1,2727.7,0.5772]
[1748495057869,3.66592409,2727.9,2727.7,0.5772]
[1748495058075,4.83515791,2727.8,2727.7,0.5772]
[1748495059183,9.09815791,2727.8,2727.7,0.5772]
[1748495059798,4.85496444,2727.2,2727.1,0.05]
[1748495059998,9.60246088,2727.2,2727.1,0.05]
[1748495060367,3.66703593,2727.0,2726.4,1.293]
[1748495060723,0.03674991,2726.9,2726.4,4.96082151]
[1748495061220,9.60246088,2727.2,2726.4,4.96082151]
[1748495061221,3.7036774,2727.1,2726.5,3.66761724]
[1748495061806,1.1882,2727.2,2726.4,1.293]
[1748495062005,1.1636,2727.5,2727.1,3.66681884]
[1748495062221,2.07277099,2727.5,2727.2,3.66675063]
[1748495062714,2.07277099,2727.5,2726.5,8.0]
[1748495062873,2.07277099,2727.5,2726.0,1.79199876]
[1748495062874,1.1757,2727.0,2726.3,11.66787235]
[1748495063072,1.1757,2727.0,2726.6,3.66756662]
[1748495063400,1.1757,2727.0,2726.8,3.6671751]
[1748495063595,1.1757,2727.4,2726.9,3.66716784]
[1748495063808,4.261,2727.3,2726.9,3.66716784]
[1748495064510,4.261,2727.3,2726.8,3.66726218]
[1748495064683,4.261,2727.3,2727.0,8.0]
[1748495065299,4.261,2727.3,2726.3,8.0]
[1748495065525,1.75083159,2727.4,2726.8,8.0]
[1748495065684,1.75083159,2727.4,2726.5,8.0]
[1748495065685,1.1757,2727.4,2726.5,8.0]
[1748495065885,3.66671499,2727.3,2726.8,8.0]
[1748495066698,3.66685866,2727.2,2726.4,8.0]
[1748495066902,3.66667885,2727.3,2726.8,8.0]
[1748495067225,5.4347,2727.4,2726.9,3.66715953]
[1748495067429,5.4347,2727.4,2727.0,3.66700689]
[1748495067723,5.4347,2727.4,2727.1,3.66688114]
[1748495067938,5.4347,2727.4,2726.7,8.0]
[1748495067939,1.1757,2727.4,2726.7,8.0]
[1748495068124,1.2271,2727.7,2727.0,11.66701104]
[1748495068322,1.2271,2727.7,2727.0,8.0]
[1748495068523,1.2271,2727.7,2727.4,3.66642637]
[1748495069640,1.2271,2727.7,2727.5,3.66629258]
[1748495069825,1.2396,2728.1,2727.6,3.66622671]
[1748495070212,1.2396,2728.1,2727.1,8.0]
[1748495070213,1.2396,2728.1,2727.5,8.0]
[1748495070523,4.90524713,2728.1,2727.5,11.66631163]
[1748495070712,1.2396,2728.1,2727.4,1.293]
[1748495070889,1.2396,2728.1,2727.7,3.66606789]
[1748495072035,1.2396,2728.1,2727.4,1.293]
[1748495072211,1.2396,2728.1,2727.5,3.66630398]
[1748495072212,4.90524825,2728.1,2727.5,3.66630398]
[1748495072398,4.90524825,2728.1,2727.7,8.0]
[1748495072610,1.2396,2728.1,2727.7,8.0]
[1748495072811,1.2396,2728.1,2727.7,11.66606405]
[1748495073048,1.2396,2728.1,2727.4,6.06795284]
[1748495073252,1.2396,2728.1,2727.8,3.66584307]
[1748495073758,1.2396,2728.1,2727.7,3.66604626]
[1748495074107,3.66578215,2728.0,2727.5,8.0]
[1748495074412,4.90524471,2728.1,2727.5,3.66632058]
[1748495074615,2.52206855,2728.1,2727.5,3.66632058]
[1748495075111,2.52206855,2728.1,2727.7,3.66600368]
[1748495075426,1.2396,2728.1,2727.6,11.666173]
[1748495076375,4.90516787,2728.1,2727.6,11.666173]
[1748495076933,3.66591632,2727.9,2727.3,1.293]
[1748495077128,3.66591632,2727.9,2727.4,3.66648402]
[1748495077326,3.66574004,2728.0,2727.4,3.66648402]
[1748495077537,4.905167,2728.1,2727.5,3.66629385]
[1748495077741,3.66571181,2728.0,2727.5,3.66629385]
[1748495078365,1.2396,2728.1,2727.5,11.66630039]
[1748495078366,4.90519042,2728.1,2727.5,11.66630039]
[1748495079024,4.90519042,2728.1,2727.6,3.66619295]
[1748495079226,9.15519042,2728.1,2727.5,3.66631368]
[1748495079426,9.15519042,2728.1,2726.3,2.5362]
[1748495079427,1.2222,2727.2,2726.3,2.5362]
[1748495079623,1.2222,2727.2,2726.8,3.66729323]
[1748495080062,4.9478382,2728.0,2726.6,3.66747336]
[1748495080063,1.1299,2727.5,2726.7,3.66743682]
[1748495080265,1.1299,2727.5,2727.1,3.66679034]
[1748495080435,1.1299,2727.8,2727.3,3.6665535]
[1748495080872,3.66622005,2727.7,2727.0,3.66703337]
[1748495081276,1.1299,2727.0,2726.1,10.05]
[1748495081574,1.1299,2727.0,2726.2,8.0]
[1748495081731,1.1299,2727.0,2726.5,3.66758889]
[1748495081932,1.1299,2727.0,2726.6,3.66754965]
[1748495082137,1.1299,2727.3,2726.8,3.66725928]
[1748495084143,4.79654715,2727.3,2726.7,3.66739273]
[1748495084673,1.1299,2727.3,2726.8,3.6672815]
[1748495085440,3.66684626,2727.2,2726.5,8.0]
[1748495086040,0.03674991,2727.2,2726.6,3.66747529]
[1748495086382,3.66719805,2726.9,2726.3,11.6679142]
[1748495086561,3.66719805,2726.9,2726.3,8.0]
[1748495086873,3.66698097,2727.1,2726.5,11.6675779]
[1748495087060,0.90445365,2727.2,2726.6,3.66750612]
[1748495087267,4.23702231,2727.1,2726.5,11.66764896]
[1748495087647,0.57010827,2727.1,2726.5,8.0]
[1748495087862,0.90445365,2727.2,2726.5,8.0]
[1748495087863,4.245,2727.2,2726.7,3.66732964]
[1748495088456,7.91177182,2727.2,2726.7,3.66732964]
[1748495088980,1.1299,2727.3,2726.9,3.66708973]
[1748495089146,1.1299,2727.3,2727.0,3.66695472]
[1748495089352,1.1299,2727.3,2726.5,8.0]
[1748495089552,1.1299,2727.3,2726.9,3.66708138]
[1748495090547,1.1299,2727.3,2726.7,3.66738316]
[1748495090951,1.1299,2727.3,2726.9,3.66715522]
[1748495091680,1.1299,2727.3,2726.9,3.66709684]
[1748495092048,1.1299,2727.3,2726.6,1.28280933]
[1748495092251,4.79659291,2727.3,2726.7,3.66736931]
[1748495093282,4.79659291,2727.3,2726.7,3.66743682]
[1748495093682,1.1299,2727.3,2726.7,3.66743682]
[1748495093841,4.79662218,2727.3,2726.7,3.66743682]
[1748495094041,4.79662218,2727.3,2726.8,3.66730053]
[1748495095375,3.66676626,2727.2,2726.7,3.6673313]
[1748495095776,3.6670781,2727.0,2726.5,11.66766497]
[1748495095979,3.70351735,2727.2,2726.5,11.66766497]
[1748495095980,0.84631879,2727.2,2726.5,11.66766497]
[1748495096287,4.51317414,2727.2,2726.7,3.66736601]
[1748495096652,4.51317414,2727.2,2726.4,1.279]
[1748495096653,0.84631879,2727.2,2726.8,3.66729035]
[1748495096848,1.1299,2727.3,2726.4,1.279]
[1748495097089,5.3689,2727.3,2726.9,3.66709697]
[1748495097888,9.03556788,2727.3,2726.7,3.66737769]
[1748495098990,9.03556788,2727.3,2726.8,3.66725422]
[1748495099165,5.3689,2727.3,2726.8,3.66725422]
[1748495099570,9.03556372,2727.3,2726.8,3.66725422]
[1748495100321,5.3689,2727.3,2726.9,3.66712597]
[1748495100515,5.3689,2727.3,2726.8,3.66723988]
[1748495100960,9.0355774,2727.3,2726.8,3.66723988]
[1748495101158,3.66679015,2727.2,2726.7,3.66734399]
[1748495102404,9.03558181,2727.3,2726.7,3.66734399]
[1748495102987,6.63911449,2727.3,2726.4,8.0]
[1748495103287,3.66696374,2727.1,2726.6,8.0]
[1748495103523,1.2317,2727.0,2726.5,1.279]
[1748495103735,3.66752434,2726.7,2726.5,1.279]
[1748495104084,1.2317,2726.6,2726.5,1.279]
[1748495105534,3.66793334,2726.4,2726.1,0.05]